[Event "Championnat du monde jeunes U12"]
[Date "2024.11.23"]
[White "Teo, Hong Kai Javier"]
[Black "Anagnostopoulos, Panagiotis"]
[WhiteElo "1675"]
[BlackElo "1848"]
[Round "8.48"]
[Result "1/2-1/2"]
[TimeControl "5400+30"]

1. e4 {[%clk 1:30:52]} 1... e6 2. d4 {[%clk 1:30:52]} 2... d5 {[%clk 1:31:10]}
3. Nd2 {[%clk 1:30:26]} 3... c5 {[%clk 1:31:34]} 4. exd5 {[%clk 1:29:50]} 4...
Qxd5 {[%clk 1:31:57]} 5. dxc5 {[%clk 1:30:03]} 5... Nf6 {[%clk 1:32:17]} 6. Ngf3
{[%clk 1:28:45]} 6... Bxc5 {[%clk 1:30:53]} 7. Bc4 {[%clk 1:28:14]} 7... Qd7
{[%clk 1:30:44]} 8. O-O {[%clk 1:20:19]} 8... O-O {[%clk 1:28:48]} 9. Qe2 {[%clk
1:15:15]} 9... Qc7 {[%clk 1:25:34]} 10. Ne4 {[%clk 1:09:32]} 10... Be7 {[%clk
1:22:51]} 11. Bg5 {[%clk 1:01:53]} 11... Nxe4 {[%clk 1:20:34]} 12. Qxe4 {[%clk
1:01:30]} 12... Bxg5 {[%clk 1:20:19]} 13. Nxg5 {[%clk 1:01:47]} 13... g6 {[%clk
1:20:11]} 14. Qh4 {[%clk 0:54:22]} 14... h5 {[%clk 1:20:00]} 15. Ne4 {[%clk
0:48:11]} 15... Qd8 {[%clk 1:15:23]} 16. Qf4 {[%clk 0:44:38]} 16... Kg7 {[%clk
1:12:31]} 17. Rfe1 {[%clk 0:37:09]} 17... Nc6 {[%clk 1:09:54]} 18. Rad1 {[%clk
0:34:54]} 18... Qe7 {[%clk 1:07:02]} 19. Qd6 {[%clk 0:23:43]} 19... Qxd6 {[%clk
1:06:16]} 20. Nxd6 {[%clk 0:23:53]} 20... Kf6 {[%clk 1:04:46]} 21. f4 {[%clk
0:23:58]} 21... Rd8 {[%clk 1:02:21]} 22. Kf2 {[%clk 0:21:16]} 22... Ke7 {[%clk
1:00:47]} 23. Ne4 {[%clk 0:20:54]} 23... a6 {[%clk 0:58:26]} 24. a4 {[%clk
0:18:15]} 24... b6 {[%clk 0:56:41]} 25. Rxd8 {[%clk 0:15:34]} 25... Nxd8 {[%clk
0:55:58]} 26. Nc3 {[%clk 0:13:52]} 26... Bb7 {[%clk 0:53:35]} 27. Nd5+ {[%clk
0:13:54]} 27... Bxd5 {[%clk 0:53:43]} 28. Bxd5 {[%clk 0:14:15]} 28... Rc8 {[%clk
0:53:42]} 29. Re2 {[%clk 0:14:36]} 29... Rc5 {[%clk 0:53:10]} 30. Ba2 {[%clk
0:14:06]} 30... Nc6 {[%clk 0:52:50]} 31. c3 {[%clk 0:12:13]} 31... a5 {[%clk
0:51:58]} 32. Bb1 {[%clk 0:11:33]} 32... Nb8 {[%clk 0:51:00]} 33. Bd3 {[%clk
0:11:39]} 33... Nd7 {[%clk 0:50:58]} 34. Re4 {[%clk 0:08:58]} 34... Nf6 {[%clk
0:50:47]} 35. Rd4 {[%clk 0:08:51]} 35... Ng4+ {[%clk 0:50:29]} 36. Kg1 {[%clk
0:07:52]} 36... Ne3 {[%clk 0:50:26]} 37. Bb5 {[%clk 0:07:11]} 37... Rc7 {[%clk
0:49:44]} 38. g3 {[%clk 0:06:27]} 38... Nf5 {[%clk 0:49:30]} 39. Rc4 {[%clk
0:05:32]} 39... Rxc4 {[%clk 0:49:30]} 40. Bxc4 {[%clk 0:05:56]} 40... h4 {[%clk
0:49:00]} 41. Kf2 {[%clk 0:06:13]} 41... hxg3+ {[%clk 0:48:59]} 42. hxg3 {[%clk
0:06:37]} 42... Nd6 {[%clk 0:48:10]} 43. Bd3 {[%clk 0:06:50]} 43... Kd7 {[%clk
0:48:05]} 44. Ke3 {[%clk 0:06:23]} 44... Kc6 {[%clk 0:47:51]} 45. Kd4 {[%clk
0:06:15]} 45... Kd7 {[%clk 0:47:54]} 46. b4 {[%clk 0:06:26]} 46... axb4 {[%clk
0:47:13]} 47. cxb4 {[%clk 0:06:52]} 47... Nc8 {[%clk 0:46:51]} 48. Bb5+ {[%clk
0:07:00]} 48... Kd6 {[%clk 0:46:50]} 49. Bd3 {[%clk 0:06:45]} 49... Ne7 {[%clk
0:46:33]} 50. Be4 {[%clk 0:06:58]} 50... Nc8 {[%clk 0:45:43]} 51. Kc4 {[%clk
0:06:10]} 51... e5 {[%clk 0:44:29]} 52. Bb7 {[%clk 0:05:22]} 52... Na7 {[%clk
0:44:23]} 53. Bd5 {[%clk 0:05:18]} 53... f6 {[%clk 0:43:39]} 54. Bf7 {[%clk
0:04:43]} 54... exf4 {[%clk 0:43:45]} 55. gxf4 {[%clk 0:05:05]} 55... g5 {[%clk
0:44:11]} 56. fxg5 {[%clk 0:05:31]} 56... fxg5 {[%clk 0:44:24]} 57. Bh5 {[%clk
0:05:03]} 57... b5+ {[%clk 0:44:11]} 58. axb5 {[%clk 0:05:29]} 58... Nc8 {[%clk
0:44:39]} 59. b6 {[%clk 0:05:29]} 59... Nxb6+ {[%clk 0:45:03]} 60. Kb5 {[%clk
0:05:56]} 60... Nd5 {[%clk 0:45:21]} 61. Kc4 {[%clk 0:05:57]} 61... Nf6 {[%clk
0:45:12]} 62. Bf3 {[%clk 0:06:21]} 62... Nd7 {[%clk 0:45:36]} 63. Kd4 {[%clk
0:06:41]} 63... Ne5 {[%clk 0:46:01]} 64. Ke4 {[%clk 0:06:45]} 64... Ke6 {[%clk
0:46:07]} 65. b5 {[%clk 0:07:08]} 65... Nc4 {[%clk 0:46:25]} 66. Kd4 {[%clk
0:07:13]} 66... Ne5 {[%clk 0:46:21]} 67. Bd5+ {[%clk 0:07:40]} 67... Kd6 {[%clk
0:46:48]} 68. b6 {[%clk 0:07:54]} 68... g4 {[%clk 0:47:13]} 69. b7 {[%clk
0:07:41]} 69... Nd7 {[%clk 0:47:40]} 70. Bg2 {[%clk 0:07:44]} 1/2-1/2

[Variant "Standard"]
[Site "Europe Echecs"]

[Event "Championnat du monde jeunes U12"]
[Date "2024.11.23"]
[White "Kraucenka, Justas"]
[Black "Lee, Tsuen Jin Aiesec"]
[WhiteElo "1650"]
[BlackElo "1806"]
[Round "8.49"]
[Result "0-1"]
[TimeControl "5400+30"]

1. d4 {[%clk 1:30:57]} 1... e6 {[%clk 1:30:58]} 2. Nf3 {[%clk 1:31:22]} 2... d5
{[%clk 1:31:26]} 3. Bf4 {[%clk 1:31:45]} 3... c5 {[%clk 1:31:54]} 4. e3 {[%clk
1:32:09]} 4... Nf6 {[%clk 1:32:22]} 5. Nbd2 {[%clk 1:32:31]} 5... Qb6 {[%clk
1:32:50]} 6. Rb1 {[%clk 1:32:52]} 6... cxd4 {[%clk 1:33:15]} 7. exd4 {[%clk
1:33:17]} 7... Bd7 {[%clk 1:33:43]} 8. c3 {[%clk 1:33:39]} 8... Bb5 {[%clk
1:34:07]} 9. Be2 {[%clk 1:33:18]} 9... Nbd7 {[%clk 1:32:57]} 10. O-O Nh5 {[%clk
1:25:17]} 11. Bxb5 {[%clk 1:31:44]} 11... Qxb5 {[%clk 1:25:20]} 12. Bg5 {[%clk
1:31:54]} 12... h6 {[%clk 1:25:29]} 13. Bh4 {[%clk 1:28:42]} 13... Nf4 {[%clk
1:17:11]} 14. a4 {[%clk 1:24:53]} 14... Qa6 {[%clk 1:16:10]} 15. Re1 {[%clk
1:24:37]} 15... Bd6 {[%clk 1:14:12]} 16. Bg3 {[%clk 1:21:19]} 16... Rc8 {[%clk
1:07:20]} 17. Ne5 {[%clk 1:17:55]} 17... Bxe5 {[%clk 1:07:39]} 18. dxe5 {[%clk
1:18:16]} 18... Nd3 {[%clk 1:08:05]} 19. Re3 {[%clk 1:17:47]} 19... N3c5 {[%clk
0:57:50]} 20. b3 {[%clk 1:16:01]} 20... O-O {[%clk 0:51:08]} 21. Bf4 {[%clk
1:10:31]} 21... Nd3 {[%clk 0:45:37]} 22. Qg4 {[%clk 1:09:10]} 22... f5 {[%clk
0:43:39]} 23. Qg3 {[%clk 1:06:21]} 23... Rxc3 {[%clk 0:20:32]} 24. Bxh6 {[%clk
1:03:57]} 24... Rf7 {[%clk 0:20:51]} 25. Bf4 {[%clk 0:59:47]} 25... d4 {[%clk
0:16:07]} 26. Rf3 {[%clk 0:58:12]} 26... N7c5 {[%clk 0:15:34]} 27. Qh4 {[%clk
0:38:40]} 27... Nc1 {[%clk 0:13:46]} 28. Rxc3 {[%clk 0:33:27]} 28... Ne2+ {[%clk
0:14:02]} 29. Kh1 {[%clk 0:33:53]} 29... dxc3 {[%clk 0:14:13]} 30. Nc4 {[%clk
0:33:23]} 30... Nxb3 {[%clk 0:08:47]} 31. Nd6 {[%clk 0:21:58]} 31... c2 {[%clk
0:08:46]} 32. Re1 {[%clk 0:21:00]} 32... Rf8 {[%clk 0:04:30]} 33. Bg5 {[%clk
0:12:44]} 33... Qd3 {[%clk 0:02:25]} 34. f3 {[%clk 0:12:19]} 34... Qd1 {[%clk
0:02:35]} 35. Qf2 {[%clk 0:12:20]} 35... f4 {[%clk 0:02:23]} 36. Qxe2 {[%clk
0:11:52]} 36... Qxe2 {[%clk 0:02:45]} 37. Rg1 {[%clk 0:11:00]} 37... Nd4 {[%clk
0:03:00]} 38. h4 {[%clk 0:10:08]} 38... Qd1 {[%clk 0:02:18]} 39. Bxf4 {[%clk
0:10:16]} 39... Rxf4 {[%clk 0:02:40]} 40. Rxd1 {[%clk 0:10:40]} 40... Ne2 {[%clk
0:02:07]} 41. g3 {[%clk 0:10:37]} 41... cxd1=Q+ {[%clk 0:02:30]} 42. Kh2 {[%clk
0:10:55]} 42... Qg1+ {[%clk 0:02:57]} 43. Kh3 {[%clk 0:11:17]} 43... Qh1# {[%clk
0:03:18]} 0-1

[Variant "Standard"]
[Site "Europe Echecs"]

[Event "Championnat du monde jeunes U12"]
[Date "2024.11.23"]
[White "Zhang, Sean"]
[Black "Wang, Yu-Chi Xavier"]
[WhiteElo "1789"]
[BlackElo "1543"]
[Round "8.50"]
[Result "1/2-1/2"]
[TimeControl "5400+30"]

1. d4 {[%clk 1:30:54]} 1... d5 {[%clk 1:30:37]} 2. Bf4 {[%clk 1:31:18]} 2... c5
{[%clk 1:30:44]} 3. e3 {[%clk 1:31:43]} 3... Bf5 {[%clk 1:30:03]} 4. dxc5 {[%clk
1:28:41]} 4... Nc6 {[%clk 1:28:59]} 5. Nf3 {[%clk 1:27:49]} 5... e6 {[%clk
1:27:29]} 6. Nd4 {[%clk 1:26:21]} 6... Bxc5 {[%clk 1:19:20]} 7. Nxf5 {[%clk
1:26:24]} 7... exf5 {[%clk 1:19:34]} 8. Nd2 {[%clk 1:25:13]} 8... Nf6 {[%clk
1:18:28]} 9. c3 {[%clk 1:25:19]} 9... O-O {[%clk 1:14:25]} 10. Nb3 {[%clk
1:25:05]} 10... Bd6 {[%clk 1:11:05]} 11. Bg5 {[%clk 1:23:58]} 11... Be7 {[%clk
0:56:39]} 12. Bd3 {[%clk 1:21:27]} 12... Ne4 {[%clk 0:52:03]} 13. Bxe7 {[%clk
1:15:20]} 13... Qxe7 {[%clk 0:50:39]} 14. O-O {[%clk 1:15:15]} 14... Rad8 {[%clk
0:41:43]} 15. Qe2 {[%clk 1:12:59]} 15... Rfe8 {[%clk 0:37:43]} 16. Rfe1 {[%clk
1:09:41]} 16... g6 {[%clk 0:32:58]} 17. Nd4 {[%clk 1:08:18]} 17... Nc5 {[%clk
0:27:50]} 18. Bb5 {[%clk 1:03:56]} 18... Qc7 {[%clk 0:25:34]} 19. Qf1 {[%clk
1:01:41]} 19... Ne6 {[%clk 0:23:05]} 20. Rac1 {[%clk 0:59:56]} 20... Qb6 {[%clk
0:18:20]} 21. b3 {[%clk 0:56:56]} 21... Re7 {[%clk 0:16:16]} 22. Bd3 {[%clk
0:55:23]} 22... Ne5 {[%clk 0:14:45]} 23. Be2 {[%clk 0:51:30]} 23... Nc6 {[%clk
0:09:13]} 24. g3 {[%clk 0:51:14]} 24... Rc8 {[%clk 0:07:09]} 25. Bf3 {[%clk
0:50:31]} 25... Rd8 {[%clk 0:05:55]} 26. Red1 {[%clk 0:50:34]} 26... Ng5 {[%clk
0:05:49]} 27. Bg2 {[%clk 0:49:20]} 27... Ne4 {[%clk 0:05:42]} 28. Ne2 {[%clk
0:48:52]} 28... Red7 {[%clk 0:05:13]} 29. h4 {[%clk 0:48:31]} 29... Ne5 {[%clk
0:04:14]} 30. Nf4 {[%clk 0:47:13]} 30... Qa5 {[%clk 0:03:10]} 31. Bxe4 {[%clk
0:32:58]} 31... dxe4 {[%clk 0:03:33]} 32. Rxd7 {[%clk 0:32:44]} 32... Rxd7
{[%clk 0:03:58]} 33. Qe2 {[%clk 0:32:49]} 33... Nf3+ {[%clk 0:04:17]} 34. Kg2
{[%clk 0:32:42]} 34... Rd2 {[%clk 0:04:39]} 35. Qc4 {[%clk 0:32:35]} 35... Qxa2
{[%clk 0:04:39]} 36. Rf1 {[%clk 0:32:11]} 36... Qa6 1/2-1/2

[Variant "Standard"]
[Site "Europe Echecs"]

[Event "Championnat du monde jeunes U12"]
[Date "2024.11.23"]
[White "Berishvili, Davit"]
[Black "Simiyu Jadon"]
[WhiteElo "1578"]
[BlackElo "1784"]
[Round "8.51"]
[Result "0-1"]
[TimeControl "5400+30"]

1. d4 {[%clk 1:30:59]} 1... d5 {[%clk 1:30:06]} 2. Nf3 {[%clk 1:31:24]} 2... Nf6
{[%clk 1:30:29]} 3. g3 {[%clk 1:31:50]} 3... e6 {[%clk 1:30:49]} 4. Bg2 {[%clk
1:32:17]} 4... Be7 {[%clk 1:31:09]} 5. O-O {[%clk 1:32:41]} 5... O-O {[%clk
1:31:32]} 6. c4 {[%clk 1:32:52]} 6... c5 {[%clk 1:30:43]} 7. cxd5 {[%clk
1:32:34]} 7... Nxd5 8. e4 {[%clk 1:31:18]} 8... Nb6 {[%clk 1:28:06]} 9. dxc5
{[%clk 1:30:30]} 9... Bxc5 {[%clk 1:27:18]} 10. b3 {[%clk 1:29:39]} 10... Nc6
{[%clk 1:27:06]} 11. Qc2 {[%clk 1:29:08]} 11... Qe7 {[%clk 1:26:04]} 12. Bb2
{[%clk 1:27:59]} 12... e5 {[%clk 1:26:23]} 13. Nc3 {[%clk 1:23:16]} 13... Bg4
{[%clk 1:23:47]} 14. Ne2 {[%clk 1:17:11]} 14... Rac8 {[%clk 1:22:03]} 15. Rac1
{[%clk 1:12:27]} 15... Nb4 {[%clk 1:14:19]} 16. Qb1 {[%clk 1:12:50]} 16... Bxf3
{[%clk 1:14:42]} 17. Bxf3 {[%clk 1:13:14]} 17... Rfd8 {[%clk 1:14:56]} 18. Rfd1
{[%clk 1:12:22]} 18... Qf6 {[%clk 1:12:22]} 19. Kg2 {[%clk 1:11:13]} 19... Rxd1
{[%clk 1:10:38]} 20. Rxd1 {[%clk 1:11:35]} 20... a5 {[%clk 1:07:52]} 21. a3
{[%clk 1:07:44]} 21... Nc6 {[%clk 1:08:10]} 22. Nf4 {[%clk 1:08:02]} 22... Nd4
{[%clk 1:04:30]} 23. Bxd4 {[%clk 1:08:24]} 23... Bxd4 {[%clk 1:04:54]} 24. Ne2
{[%clk 1:08:10]} 24... g6 {[%clk 1:01:45]} 25. Rc1 {[%clk 1:02:55]} 25... Rd8
{[%clk 1:01:13]} 26. Rc7 {[%clk 1:00:35]} 26... Rd7 {[%clk 1:00:25]} 27. Qc2
{[%clk 1:00:36]} 27... Qd6 {[%clk 1:00:29]} 28. Rxd7 {[%clk 1:00:54]} 28... Qxd7
{[%clk 1:00:10]} 29. g4 {[%clk 1:00:13]} 29... Qd6 {[%clk 0:59:27]} 30. Qd2
{[%clk 0:57:41]} 30... a4 {[%clk 0:57:47]} 31. bxa4 {[%clk 0:56:27]} 31... Nxa4
{[%clk 0:57:24]} 32. Qa5 {[%clk 0:54:58]} 32... Nc5 {[%clk 0:57:28]} 33. Ng3
{[%clk 0:53:55]} 33... Ne6 {[%clk 0:56:46]} 34. Ne2 {[%clk 0:53:28]} 34... b6
{[%clk 0:55:42]} 35. Qa8+ {[%clk 0:51:02]} 35... Kg7 {[%clk 0:56:03]} 36. Qa4
{[%clk 0:47:05]} 36... Bc5 {[%clk 0:54:56]} 37. h4 {[%clk 0:46:34]} 37... Bxa3
{[%clk 0:54:53]} 38. h5 {[%clk 0:46:33]} 38... Bc5 {[%clk 0:54:27]} 39. Qc2
{[%clk 0:43:40]} 39... Qe7 {[%clk 0:52:57]} 40. Qc3 {[%clk 0:43:45]} 40... Qf6
{[%clk 0:50:41]} 41. Qd2 {[%clk 0:41:02]} 41... Qh4 {[%clk 0:50:13]} 42. Ng3
{[%clk 0:40:47]} 42... Ng5 {[%clk 0:49:35]} 43. Bd1 {[%clk 0:39:07]} 43... Qh3+
{[%clk 0:49:57]} 44. Kg1 {[%clk 0:39:32]} 44... Qxg3+ {[%clk 0:50:15]} 45. Kf1
{[%clk 0:39:49]} 45... Qh3+ {[%clk 0:49:54]} 46. Kg1 {[%clk 0:39:55]} 46... Nxe4
{[%clk 0:50:00]} 47. h6+ {[%clk 0:40:17]} 47... Qxh6 {[%clk 0:49:59]} 48. Qe2
{[%clk 0:40:12]} 48... Nxf2 {[%clk 0:49:57]} 49. Qxe5+ {[%clk 0:40:36]} 49...
Kg8 {[%clk 0:49:29]} 50. Qe8+ {[%clk 0:40:56]} 50... Qf8 {[%clk 0:49:48]} 51.
Qxf8+ {[%clk 0:41:21]} 51... Kxf8 {[%clk 0:50:12]} 0-1

[Variant "Standard"]
[Site "Europe Echecs"]

[Event "Championnat du monde jeunes U12"]
[Date "2024.11.23"]
[White "Zutautas, Mantas"]
[Black "Lee, Daniel Joshua"]
[WhiteElo "1540"]
[BlackElo "1765"]
[Round "8.52"]
[Result "0-1"]
[TimeControl "5400+30"]

1. d4 {[%clk 1:30:58]} 1... d5 {[%clk 1:30:56]} 2. Nf3 {[%clk 1:31:18]} 2... Nf6
{[%clk 1:31:20]} 3. Bf4 {[%clk 1:31:39]} 3... c5 {[%clk 1:31:32]} 4. c3 {[%clk
1:31:57]} 4... Nc6 {[%clk 1:31:44]} 5. e3 {[%clk 1:32:00]} 5... Qb6 {[%clk
1:31:44]} 6. Qc2 {[%clk 1:31:57]} 6... g6 7. Bd3 {[%clk 1:29:49]} 7... c4 {[%clk
1:28:52]} 8. Be2 {[%clk 1:29:54]} 8... Bf5 {[%clk 1:28:30]} 9. Qc1 {[%clk
1:28:45]} 9... Bg7 {[%clk 1:28:02]} 10. Nbd2 {[%clk 1:27:20]} 10... O-O {[%clk
1:27:19]} 11. O-O {[%clk 1:27:29]} 11... Qd8 {[%clk 1:22:17]} 12. h3 {[%clk
1:26:07]} 12... b5 {[%clk 1:19:32]} 13. Nh4 {[%clk 1:21:00]} 13... Bd7 {[%clk
1:11:07]} 14. Qc2 {[%clk 1:18:44]} 14... Ne8 {[%clk 1:09:06]} 15. e4 {[%clk
1:17:12]} 15... dxe4 {[%clk 1:08:14]} 16. Nxe4 {[%clk 1:16:08]} 16... Nd6 {[%clk
0:44:23]} 17. Nc5 {[%clk 1:09:42]} 17... Bc8 {[%clk 0:39:43]} 18. a4 {[%clk
1:07:04]} 18... e5 {[%clk 0:29:05]} 19. dxe5 {[%clk 0:54:53]} 19... Qxh4 {[%clk
0:26:57]} 20. Bg3 {[%clk 0:53:58]} 20... Qg5 {[%clk 0:24:00]} 21. h4 {[%clk
0:53:28]} 21... Qf5 {[%clk 0:23:38]} 22. Qxf5 {[%clk 0:50:35]} 22... Nxf5 {[%clk
0:24:03]} 23. Bf3 {[%clk 0:50:51]} 23... Nxg3 {[%clk 0:18:04]} 24. fxg3 {[%clk
0:51:09]} 24... bxa4 {[%clk 0:16:30]} 25. Bxc6 {[%clk 0:49:22]} 25... Rb8 {[%clk
0:16:54]} 26. Nxa4 {[%clk 0:46:25]} 26... Bxe5 {[%clk 0:15:59]} 27. Kh2 {[%clk
0:45:24]} 27... Rd8 {[%clk 0:13:42]} 28. Rf2 {[%clk 0:43:08]} 28... Rd3 {[%clk
0:11:16]} 29. Rf3 {[%clk 0:38:03]} 29... Rd2 {[%clk 0:10:42]} 30. Nc5 {[%clk
0:37:05]} 30... Rbxb2 {[%clk 0:09:13]} 31. Rxa7 {[%clk 0:37:20]} 31... Rxg2+
{[%clk 0:09:03]} 32. Kh1 {[%clk 0:37:39]} 32... Bh3 {[%clk 0:02:55]} 33. Ra1
{[%clk 0:36:54]} 33... Rh2+ {[%clk 0:02:52]} 34. Kg1 {[%clk 0:37:15]} 34...
Rbg2+ {[%clk 0:03:10]} 35. Kf1 {[%clk 0:37:38]} 35... Rh1# {[%clk 0:03:32]} 0-1

[Variant "Standard"]
[Site "Europe Echecs"]

[Event "Championnat du monde jeunes U12"]
[Date "2024.11.23"]
[White "Yusupov, Rauf"]
[Black "Sharku, Uvejs"]
[WhiteElo "1763"]
[BlackElo "1516"]
[Round "8.53"]
[Result "1-0"]
[TimeControl "5400+30"]

1. d4 {[%clk 1:30:59]} 1... c6 {[%clk 1:30:38]} 2. Nf3 {[%clk 1:31:21]} 2... d5
{[%clk 1:30:46]} 3. e3 {[%clk 1:31:46]} 3... Nf6 {[%clk 1:30:25]} 4. b3 {[%clk
1:32:07]} 4... Bf5 {[%clk 1:26:46]} 5. Bd3 {[%clk 1:32:28]} 5... Bg6 {[%clk
1:26:54]} 6. Ba3 {[%clk 1:29:07]} 6... Nbd7 {[%clk 1:22:54]} 7. O-O {[%clk
1:28:00]} 7... e6 {[%clk 1:22:41]} 8. Bxf8 {[%clk 1:28:17]} 8... Nxf8 {[%clk
1:23:01]} 9. Ne5 {[%clk 1:27:16]} 9... N8d7 {[%clk 1:20:35]} 10. f4 {[%clk
1:27:03]} 10... Bxd3 {[%clk 1:14:59]} 11. Qxd3 {[%clk 1:27:27]} 11... Ne4 {[%clk
1:15:13]} 12. Nd2 {[%clk 1:27:03]} 12... Ndf6 {[%clk 1:12:05]} 13. Nxe4 {[%clk
1:23:16]} 13... Nxe4 {[%clk 1:12:26]} 14. c4 {[%clk 1:20:26]} 14... O-O {[%clk
1:10:51]} 15. c5 {[%clk 1:18:42]} 15... Rc8 {[%clk 1:01:03]} 16. b4 {[%clk
1:15:37]} 16... f5 {[%clk 0:48:40]} 17. a4 {[%clk 1:14:07]} 17... Rf6 {[%clk
0:44:25]} 18. b5 {[%clk 1:09:35]} 18... cxb5 {[%clk 0:34:28]} 19. axb5 {[%clk
1:06:09]} 19... Ra8 {[%clk 0:29:39]} 20. Ra2 {[%clk 1:04:51]} 20... Rh6 {[%clk
0:26:55]} 21. Rfa1 {[%clk 0:57:00]} 21... Rb8 {[%clk 0:26:03]} 22. Nf3 {[%clk
0:54:01]} 22... b6 {[%clk 0:20:19]} 23. c6 {[%clk 0:50:32]} 23... a5 {[%clk
0:20:07]} 24. bxa6 {[%clk 0:49:31]} 24... Qc7 {[%clk 0:19:49]} 25. a7 {[%clk
0:46:53]} 25... Ra8 {[%clk 0:20:13]} 26. Ne5 {[%clk 0:46:25]} 26... Qd8 {[%clk
0:20:29]} 27. g3 {[%clk 0:45:05]} 27... Qe8 {[%clk 0:18:56]} 28. c7 {[%clk
0:40:35]} 28... Nxg3 {[%clk 0:19:16]} 29. c8=Q Qxc8 {[%clk 0:19:33]} 30. hxg3
{[%clk 0:39:35]} 30... Qe8 {[%clk 0:19:55]} 31. Qe2 {[%clk 0:35:01]} 31... Rh3
{[%clk 0:18:52]} 32. Kg2 {[%clk 0:33:36]} 32... Rh5 {[%clk 0:19:08]} 33. Rb1
{[%clk 0:32:09]} 1-0

[Variant "Standard"]
[Site "Europe Echecs"]

[Event "Championnat du monde jeunes U12"]
[Date "2024.11.23"]
[White "Leht, Karl Samuel"]
[Black "Kim, Minwoo"]
[WhiteElo "1701"]
[BlackElo "1501"]
[Round "8.56"]
[Result "1-0"]
[TimeControl "5400+30"]

1. e4 {[%clk 1:30:57]} 1... e5 {[%clk 1:30:28]} 2. Nf3 {[%clk 1:31:21]} 2... Nc6
{[%clk 1:30:44]} 3. Bc4 {[%clk 1:31:46]} 3... Bc5 {[%clk 1:31:08]} 4. b4 {[%clk
1:32:11]} 4... Bxb4 {[%clk 1:30:53]} 5. c3 {[%clk 1:32:31]} 5... Bc5 {[%clk
1:29:44]} 6. d4 {[%clk 1:32:55]} 6... exd4 {[%clk 1:29:57]} 7. cxd4 Bb4+ {[%clk
1:27:26]} 8. Nbd2 {[%clk 1:31:57]} 8... d6 {[%clk 1:25:53]} 9. d5 {[%clk
1:30:53]} 9... Ne5 {[%clk 1:25:45]} 10. Qa4+ {[%clk 1:30:49]} 10... c6 {[%clk
1:24:23]} 11. Qxb4 {[%clk 1:30:59]} 11... a5 {[%clk 1:23:25]} 12. Qc3 {[%clk
1:30:40]} 12... cxd5 {[%clk 1:23:06]} 13. Bxd5 {[%clk 1:30:50]} 13... Nxf3+
{[%clk 1:23:09]} 14. Nxf3 {[%clk 1:31:00]} 14... Nf6 {[%clk 1:21:59]} 15. O-O
{[%clk 1:31:02]} 15... h5 {[%clk 1:20:21]} 16. Bb2 {[%clk 1:30:49]} 16... h4
{[%clk 1:17:21]} 17. Rfe1 {[%clk 1:30:31]} 17... h3 {[%clk 1:17:01]} 18. g3
{[%clk 1:30:52]} 18... Bg4 {[%clk 1:15:15]} 19. Bxb7 {[%clk 1:30:31]} 19... Rb8
{[%clk 1:13:52]} 20. Bc6+ {[%clk 1:29:23]} 20... Kf8 {[%clk 1:14:08]} 21. Ba3
{[%clk 1:29:29]} 21... Rc8 {[%clk 1:13:21]} 22. e5 {[%clk 1:29:39]} 22... Nd5
{[%clk 1:11:49]} 23. Qd4 {[%clk 1:29:08]} 23... Bxf3 {[%clk 1:10:02]} 24. Bxd5
{[%clk 1:29:30]} 24... Bxd5 {[%clk 1:10:17]} 25. Qxd5 {[%clk 1:29:59]} 25... Rc2
{[%clk 1:05:42]} 26. Qxd6+ {[%clk 1:30:15]} 26... Qxd6 {[%clk 1:05:57]} 27. exd6
{[%clk 1:30:37]} 27... f6 {[%clk 1:04:05]} 28. d7+ {[%clk 1:30:54]} 28... Kf7
{[%clk 1:04:26]} 29. Re7+ {[%clk 1:31:15]} 29... Kg6 {[%clk 1:04:03]} 30. Re8
{[%clk 1:31:33]} 30... Rh5 {[%clk 1:02:14]} 31. d8=Q {[%clk 1:31:41]} 31... Rf5
{[%clk 1:02:33]} 32. Rf1 {[%clk 1:31:39]} 32... Rxa2 {[%clk 1:02:38]} 33. Qd3
{[%clk 1:31:49]} 33... Kg5 {[%clk 1:02:37]} 34. Bc1+ {[%clk 1:31:57]} 34... Kg6
{[%clk 1:02:27]} 35. g4 {[%clk 1:32:21]} 35... Kf7 {[%clk 1:02:45]} 36. Qd7+
{[%clk 1:32:42]} 36... Kg6 {[%clk 1:03:10]} 37. gxf5+ {[%clk 1:32:52]} 37... Kh5
{[%clk 1:03:18]} 38. Rh8+ {[%clk 1:33:21]} 38... Kg4 {[%clk 1:03:31]} 39. f3#
{[%clk 1:33:46]} 1-0

[Variant "Standard"]
[Site "Europe Echecs"]

[Event "Championnat du monde jeunes U12"]
[Date "2024.11.23"]
[White "To, Nam Long"]
[Black "Mintz, Nathan"]
[WhiteElo "1608"]
[BlackElo "1633"]
[Round "8.58"]
[Result "0-1"]
[TimeControl "5400+30"]

1. d4 {[%clk 1:29:34]} 1... Nf6 {[%clk 1:30:52]} 2. Bf4 {[%clk 1:29:43]} 2... g6
{[%clk 1:31:06]} 3. e3 {[%clk 1:30:01]} 3... d5 {[%clk 1:31:31]} 4. Nf3 {[%clk
1:29:58]} 4... Bg7 {[%clk 1:31:52]} 5. h3 {[%clk 1:30:16]} 5... O-O {[%clk
1:32:06]} 6. Be2 {[%clk 1:30:31]} 6... c5 {[%clk 1:32:21]} 7. c3 {[%clk
1:30:54]} 7... Nc6 {[%clk 1:32:36]} 8. O-O Nd7 {[%clk 1:31:42]} 9. Nbd2 {[%clk
1:29:19]} 9... e5 {[%clk 1:30:57]} 10. dxe5 {[%clk 1:28:52]} 10... Ndxe5 {[%clk
1:30:58]} 11. Nxe5 {[%clk 1:28:31]} 11... Nxe5 {[%clk 1:31:13]} 12. Nf3 {[%clk
1:26:56]} 12... Re8 {[%clk 1:27:54]} 13. Nxe5 {[%clk 1:22:09]} 13... Bxe5 {[%clk
1:28:11]} 14. Bb5 {[%clk 1:21:33]} 14... Bd7 {[%clk 1:17:35]} 15. Bxd7 {[%clk
1:11:07]} 15... Qxd7 {[%clk 1:17:50]} 16. Bxe5 {[%clk 1:08:56]} 16... Rxe5
{[%clk 1:18:04]} 17. Qd3 {[%clk 1:08:15]} 17... Rd8 {[%clk 1:12:42]} 18. Rad1
{[%clk 1:07:01]} 18... Qa4 {[%clk 1:08:30]} 19. a3 {[%clk 1:03:22]} 19... Qh4
{[%clk 1:00:15]} 20. Kh2 {[%clk 1:00:24]} 20... Rf5 {[%clk 0:55:08]} 21. Rd2
{[%clk 0:57:50]} 21... Qf6 {[%clk 0:52:32]} 22. f4 {[%clk 0:53:53]} 22... d4
{[%clk 0:45:13]} 23. c4 {[%clk 0:50:11]} 23... Rh5 {[%clk 0:38:00]} 24. g4
{[%clk 0:49:55]} 24... Rh4 {[%clk 0:37:54]} 25. Kg3 {[%clk 0:48:31]} 25... Qe7
{[%clk 0:36:02]} 26. Rff2 {[%clk 0:42:33]} 26... Rh6 {[%clk 0:31:19]} 27. g5
{[%clk 0:41:29]} 27... Rh5 {[%clk 0:31:30]} 28. Rfe2 {[%clk 0:39:35]} 28... Qd6
{[%clk 0:28:48]} 29. h4 {[%clk 0:30:06]} 29... f6 {[%clk 0:27:35]} 30. Kg4
{[%clk 0:27:14]} 30... Qe6+ {[%clk 0:22:39]} 31. f5 {[%clk 0:17:01]} 31... gxf5+
{[%clk 0:21:58]} 32. Kg3 {[%clk 0:16:51]} 32... fxg5 {[%clk 0:21:03]} 33. exd4
{[%clk 0:14:29]} 33... Qd6+ {[%clk 0:19:10]} 34. Kg2 {[%clk 0:14:04]} 34... Rxh4
{[%clk 0:16:40]} 35. Re5 {[%clk 0:11:25]} 35... Rxd4 {[%clk 0:15:40]} 36. Rd5
{[%clk 0:10:41]} 36... Rxd3 {[%clk 0:14:55]} 37. R2xd3 {[%clk 0:11:06]} 37...
Qc6 {[%clk 0:14:59]} 0-1

[Variant "Standard"]
[Site "Europe Echecs"]